{"text_format":"1","workbook":"xlsx","n_sheets":3,"sheets":["Course Input Page","Tableau Page","Course Database"],"not_rendered":{"charts":0,"images":0,"macros":1,"external_links":0,"defined_names":0,"comments":0,"pivot_tables":0},"unopened":[],"bounds":{"document_bytes":16777216,"sheet_cells":100000,"rows_first":2000,"rows_last":500,"rows_between":2000,"halvings":0,"cell_chars":16384,"cell_head_chars":4096},"cells_cut":0,"cells_raw":0,"read":"whole","date_system":"1900"}

{"sheet":"Course Input Page","index":0,"n_rows":76,"n_cols":27,"rows_kept":76,"cut":false,"hidden":false,"merged":[]}
["CB year","Degree Plan","Department","Course Number","Course Name","Semester","Year","Hours","PreRecs","CoRecs","PreRec2","Degree Requirment","Requirement 2","Requirement 3","Course Type","Course Description","Outome","Introduce/Reinforce/Enphasize","Outcome Description","All Outcomes",null,"A2:T1","Outcome Combined List Logic","Combined Ouctomes List"]
[2018,"CIS",null,null,null,null,null,null,{"$f":"IF(G26>0,C61,\"None\")","v":"None"},{"$f":"IF(J26>0,F61,\"None\")","v":"None"},{"$f":"IF(M26>0,I61,\"None\")","v":"None"},null,null,null,null,null,{"$f":"W2","v":"          "},"Not Applicable",{"$f":"X2","v":"          "},true,{"$f":"IF(Q2>0,V2,U1)","v":"A2:T2"},"A2:T2",{"$f":"W3&\" \"&W4&\" \"&W5&\" \"&W6&\" \"&W7&\" \"&W8&\" \"&W9&\" \"&W10&\" \"&W11&\" \"&W12&\" \"&W13","v":"          "},{"$f":"X3&\" \"&X4&\" \"&X5&\" \"&X6&\" \"&X7&\" \"&X8&\" \"&X9&\" \"&X10&\" \"&X11&\" \"&X12&\" \"&X13","v":"          "}]
[{"$f":"A2","v":2018},{"$f":"$B$2","v":"CIS"},{"$f":"C$2","v":0},{"$f":"D$2","v":0},0,0,0,0,null,null,null,null,null,null,null,null,null,null,{"$f":"B44","v":"Not Listed"},false,"A2:T2","A2:T3",{"$f":"IF(Q4>0,(IF(Q3>0,Q3&\",\",\"\")),((IF(Q3>0,Q3,\"\"))))","v":""},{"$f":"IF(Q4>0,(IF(Q3>0,S3&\"\n\",\"\")),((IF(Q3>0,S3,\"\"))))","v":""}]
[{"$f":"A3","v":2018},{"$f":"$B$2","v":"CIS"},{"$f":"C$2","v":0},0,0,0,0,0,null,null,null,null,null,null,null,null,null,null,"Not Listed",false,"A2:T2","A2:T4","",{"$f":"IF(Q5>0,(IF(Q4>0,S4&\"\n\",\"\")),((IF(Q4>0,S4,\"\"))))","v":""}]
[2018,"CIS",0,0,0,0,0,0,null,null,null,null,null,null,null,null,null,null,"Not Listed",false,"A2:T2","A2:T5","",""]
[2018,"CIS",0,0,0,0,0,0,null,null,null,null,null,null,null,null,null,null,"Not Listed",false,"A2:T2","A2:T6","",""]
[2018,"CIS",0,0,0,0,0,0,null,null,null,null,null,null,null,null,null,null,"Not Listed",false,"A2:T2","A2:T7","",""]
[2018,"CIS",0,0,0,0,0,0,null,null,null,null,null,null,null,null,null,null,"Not Listed",false,"A2:T2","A2:T8","",""]
[2018,"CIS",0,0,0,0,0,0,null,null,null,null,null,null,null,null,null,null,"Not Listed",false,"A2:T2","A2:T9","",""]
[2018,"CIS",0,0,0,0,0,0,null,null,null,null,null,null,null,null,null,null,"Not Listed",false,"A2:T2","A2:T10","",""]
[2018,"CIS",0,0,0,0,0,0,null,null,null,null,null,null,null,null,null,null,"Not Listed",false,"A2:T2","A2:T11","",""]
[2018,"CIS",0,0,0,0,0,0,null,null,null,null,null,null,null,null,null,null,"Not Listed",false,"A2:T2","A2:T12","",""]
[2018,"CIS",0,0,0,0,0,0,null,null,null,null,null,null,null,null,null,null,"Not Listed",false,"A2:T2","A2:T13","",""]
[2018,"CIS",0,0,0,0,0,0,null,null,null,null,null,null,null,null,null,null,"Not Listed",false,"A2:T2","A2:T14","",""]
[2018,"CIS",0,0,0,0,0,0,null,null,null,null,null,null,null,null,null,null,"Not Listed",false,"A2:T2","A2:T15","",""]
[2018,"CIS",0,0,0,0,0,0,null,null,null,null,null,null,null,null,null,null,"Not Listed",false,"A2:T2","A2:T16","",""]
[2018,"CIS",0,0,0,0,0,0,null,null,null,null,null,null,null,null,null,null,"Not Listed",false,"A2:T2","A2:T17","",""]
[null,null,null,null,null,null,null,null,null,null,null,null,null,null,null,null,null,null,null,null,null,null,""]
[null,null,null,null,null,null,null,null,null,null,null,null,null,null,null,null,null,null,null,null,null,null,""]
[null,null,null,null,null,null,null,null,null,null,null,null,null,null,null,null,null,null,null,null,null,null,""]
[null,null,null,null,null,null,null,null,null,null,null,null,null,null,null,null,null,null,null," ",null,null,""]
[]
[]
[null,null,null,null,null,"PreRec",null,null,"CoRec",null,null,"PreRec 2"]
[null,"Outcome Key","Ouctome Descriptions",null,null,"Department","Number","Name","Department","Number","Name","Department","Number","Name"]
[null,1,"Hello",null,{"$f":"F26&G26","v":""},null,null,{"$f":"VLOOKUP(E26,'Course Database'!$A$2:$F$73,1,FALSE)","v":""},null,null,{"$f":"VLOOKUP(D62,'Course Database'!$A$2:$F$73,5,FALSE)","v":"  "},null,null,{"$f":"VLOOKUP(G62,'Course Database'!$A$2:$F$73,5,FALSE)","v":"  "}]
[null,"b","goodbye",null,{"$f":"F27&G27","v":""},null,null,{"$f":"VLOOKUP(E27,'Course Database'!$A$2:$F$73,1,FALSE)","v":""},null,null,{"$f":"VLOOKUP(D63,'Course Database'!$A$2:$F$73,5,FALSE)","v":"  "},null,null,{"$f":"VLOOKUP(G63,'Course Database'!$A$2:$F$73,5,FALSE)","v":"  "},null,null,{"$f":"VLOOKUP(G63,'Course Database'!$A$2:$F$73,5,FALSE)","v":"  "}]
[null,3,"c",null,"",null,null,{"$f":"VLOOKUP(E28,'Course Database'!$A$2:$F$73,5,FALSE)","v":"  "},null,null,{"$f":"VLOOKUP(D64,'Course Database'!$A$2:$F$73,5,FALSE)","v":"  "},null,null,{"$f":"VLOOKUP(G64,'Course Database'!$A$2:$F$73,5,FALSE)","v":"  "},null,null,{"$f":"VLOOKUP(G64,'Course Database'!$A$2:$F$73,5,FALSE)","v":"  "}]
[null,4,"d",null,"",null,null,{"$f":"VLOOKUP(E29,'Course Database'!$A$2:$F$73,5,FALSE)","v":"  "},null,null,{"$f":"VLOOKUP(D65,'Course Database'!$A$2:$F$73,5,FALSE)","v":"  "},null,null,{"$f":"VLOOKUP(G65,'Course Database'!$A$2:$F$73,5,FALSE)","v":"  "},null,null,{"$f":"VLOOKUP(G65,'Course Database'!$A$2:$F$73,5,FALSE)","v":"  "}]
[null,5,"e",null,"",null,null,{"$f":"VLOOKUP(E30,'Course Database'!$A$2:$F$73,5,FALSE)","v":"  "},null,null,{"$f":"VLOOKUP(D66,'Course Database'!$A$2:$F$73,5,FALSE)","v":"  "},null,null,null,null,null,{"$f":"VLOOKUP(G66,'Course Database'!$A$2:$F$73,5,FALSE)","v":"  "}]
[null,6,"f",null,"",null,null,{"$f":"VLOOKUP(E31,'Course Database'!$A$2:$F$73,5,FALSE)","v":"  "},null,null,{"$f":"VLOOKUP(D67,'Course Database'!$A$2:$F$73,5,FALSE)","v":"  "},null,null,null,null,null,{"$f":"VLOOKUP(G67,'Course Database'!$A$2:$F$73,5,FALSE)","v":"  "}]
[null,7,"g",null,"",null,null,{"$f":"VLOOKUP(E32,'Course Database'!$A$2:$F$73,5,FALSE)","v":"  "},null,null,{"$f":"VLOOKUP(D68,'Course Database'!$A$2:$F$73,5,FALSE)","v":"  "},null,null,null,null,null,{"$f":"VLOOKUP(G68,'Course Database'!$A$2:$F$73,5,FALSE)","v":"  "}]
[null,8,"h",null,"",null,null,{"$f":"VLOOKUP(E33,'Course Database'!$A$2:$F$73,5,FALSE)","v":"  "},null,null,{"$f":"VLOOKUP(D69,'Course Database'!$A$2:$F$73,5,FALSE)","v":"  "},null,null,null,null,null,{"$f":"VLOOKUP(G69,'Course Database'!$A$2:$F$73,5,FALSE)","v":"  "}]
[null,9,"i",null,"",null,null,{"$f":"VLOOKUP(E34,'Course Database'!$A$2:$F$73,5,FALSE)","v":"  "},null,null,{"$f":"VLOOKUP(D70,'Course Database'!$A$2:$F$73,5,FALSE)","v":"  "},null,null,null,null,null,{"$f":"VLOOKUP(G70,'Course Database'!$A$2:$F$73,5,FALSE)","v":"  "}]
[null,10,"j",null,"",null,null,{"$f":"VLOOKUP(E35,'Course Database'!$A$2:$F$73,5,FALSE)","v":"  "},null,null,{"$f":"VLOOKUP(D71,'Course Database'!$A$2:$F$73,5,FALSE)","v":"  "},null,null,null,null,null,{"$f":"VLOOKUP(G71,'Course Database'!$A$2:$F$73,5,FALSE)","v":"  "}]
[null,11,"k",null,"",null,null,{"$f":"VLOOKUP(E36,'Course Database'!$A$2:$F$73,5,FALSE)","v":"  "},null,null,{"$f":"VLOOKUP(D72,'Course Database'!$A$2:$F$73,5,FALSE)","v":"  "},null,null,null,null,null,{"$f":"VLOOKUP(G72,'Course Database'!$A$2:$F$73,5,FALSE)","v":"  "}]
[null,12,"l",null,"",null,null,{"$f":"VLOOKUP(E37,'Course Database'!$A$2:$F$73,5,FALSE)","v":"  "},null,null,{"$f":"VLOOKUP(D73,'Course Database'!$A$2:$F$73,5,FALSE)","v":"  "},null,null,null,null,null,{"$f":"VLOOKUP(G73,'Course Database'!$A$2:$F$73,5,FALSE)","v":"  "}]
[null,13,"m",null,{"$f":"F38&G38","v":""},null,null,null,null,null,null,null,null,null,null,null,{"$f":"VLOOKUP(G74,'Course Database'!$A$2:$F$73,5,FALSE)","v":"  "}]
[null,14,"n",null,null,null,null,null,null,null,null,null,null,null,null,null,{"$f":"VLOOKUP(G75,'Course Database'!$A$2:$F$73,5,FALSE)","v":"  "}]
[null,15,"o",null,null,null,null,null,null,null,null,null,null,null,null,null,{"$f":"VLOOKUP(G76,'Course Database'!$A$2:$F$73,5,FALSE)","v":"  "}]
[]
[null,"Description Logic"]
[null,1,2,null,null,3,4,5,null,null,null,null,null,null,null,null,6,7,8,9,10,11,12,13,14,15]
[null,{"$f":"IF($Q3=$B$26,$C$26,C44)","v":"Not Listed"},{"$f":"IF($Q3=$B$27,$C$27,F44)","v":"Not Listed"},null,null,{"$f":"IF($Q3=$B$28,$C$28,G44)","v":"Not Listed"},{"$f":"IF($Q3=$B$29,$C$29,H44)","v":"Not Listed"},{"$f":"IF($Q3=$B$30,$C$30,Q44)","v":"Not Listed"},null,null,null,null,null,null,null,null,{"$f":"IF($Q3=$B$31,$C$31,R44)","v":"Not Listed"},{"$f":"IF($Q3=$B$32,$C$32,S44)","v":"Not Listed"},{"$f":"IF($Q3=$B$33,$C$33,T44)","v":"Not Listed"},{"$f":"IF($Q3=$B$34,$C$34,U44)","v":"Not Listed"},{"$f":"IF($Q3=$B$35,$C$35,V44)","v":"Not Listed"},{"$f":"IF($Q3=$B$36,$C$36,W44)","v":"Not Listed"},{"$f":"IF($Q3=$B$37,$C$37,X44)","v":"Not Listed"},{"$f":"IF($Q3=$B$38,$C$38,Y44)","v":"Not Listed"},{"$f":"IF($Q3=$B$39,$C$39,Z44)","v":"Not Listed"},{"$f":"IF($Q3=$B$40,$C$40,AA44)","v":"Not Listed"},"Not Listed"]
[null,{"$f":"IF($Q4=$B$26,$C$26,C45)","v":"Not Listed"},"Not Listed",null,null,"Not Listed","Not Listed","Not Listed",null,null,null,null,null,null,null,null,"Not Listed","Not Listed","Not Listed","Not Listed","Not Listed","Not Listed","Not Listed","Not Listed","Not Listed","Not Listed","Not Listed"]
[null,"Not Listed","Not Listed",null,null,"Not Listed","Not Listed","Not Listed",null,null,null,null,null,null,null,null,"Not Listed","Not Listed","Not Listed","Not Listed","Not Listed","Not Listed","Not Listed","Not Listed","Not Listed","Not Listed","Not Listed"]
[null,"Not Listed","Not Listed",null,null,"Not Listed","Not Listed","Not Listed",null,null,null,null,null,null,null,null,"Not Listed","Not Listed","Not Listed","Not Listed","Not Listed","Not Listed","Not Listed","Not Listed","Not Listed","Not Listed","Not Listed"]
[null,"Not Listed","Not Listed",null,null,"Not Listed","Not Listed","Not Listed",null,null,null,null,null,null,null,null,"Not Listed","Not Listed","Not Listed","Not Listed","Not Listed","Not Listed","Not Listed","Not Listed","Not Listed","Not Listed","Not Listed"]
[null,"Not Listed","Not Listed",null,null,"Not Listed","Not Listed","Not Listed",null,null,null,null,null,null,null,null,"Not Listed","Not Listed","Not Listed","Not Listed","Not Listed","Not Listed","Not Listed","Not Listed","Not Listed","Not Listed","Not Listed"]
[null,"Not Listed","Not Listed",null,null,"Not Listed","Not Listed","Not Listed",null,null,null,null,null,null,null,null,"Not Listed","Not Listed","Not Listed","Not Listed","Not Listed","Not Listed","Not Listed","Not Listed","Not Listed","Not Listed","Not Listed"]
[null,"Not Listed","Not Listed",null,null,"Not Listed","Not Listed","Not Listed",null,null,null,null,null,null,null,null,"Not Listed","Not Listed","Not Listed","Not Listed","Not Listed","Not Listed","Not Listed","Not Listed","Not Listed","Not Listed","Not Listed"]
[null,"Not Listed","Not Listed",null,null,"Not Listed","Not Listed","Not Listed",null,null,null,null,null,null,null,null,"Not Listed","Not Listed","Not Listed","Not Listed","Not Listed","Not Listed","Not Listed","Not Listed","Not Listed","Not Listed","Not Listed"]
[null,"Not Listed","Not Listed",null,null,"Not Listed","Not Listed","Not Listed",null,null,null,null,null,null,null,null,"Not Listed","Not Listed","Not Listed","Not Listed","Not Listed","Not Listed","Not Listed","Not Listed","Not Listed","Not Listed","Not Listed"]
[null,"Not Listed","Not Listed",null,null,"Not Listed","Not Listed","Not Listed",null,null,null,null,null,null,null,null,"Not Listed","Not Listed","Not Listed","Not Listed","Not Listed","Not Listed","Not Listed","Not Listed","Not Listed","Not Listed","Not Listed"]
[null,"Not Listed","Not Listed",null,null,"Not Listed","Not Listed","Not Listed",null,null,null,null,null,null,null,null,"Not Listed","Not Listed","Not Listed","Not Listed","Not Listed","Not Listed","Not Listed","Not Listed","Not Listed","Not Listed","Not Listed"]
[null,"Not Listed","Not Listed",null,null,"Not Listed","Not Listed","Not Listed",null,null,null,null,null,null,null,null,"Not Listed","Not Listed","Not Listed","Not Listed","Not Listed","Not Listed","Not Listed","Not Listed","Not Listed","Not Listed","Not Listed"]
[null,"Not Listed","Not Listed",null,null,"Not Listed","Not Listed","Not Listed",null,null,null,null,null,null,null,null,"Not Listed","Not Listed","Not Listed","Not Listed","Not Listed","Not Listed","Not Listed","Not Listed","Not Listed","Not Listed","Not Listed"]
[null,"Not Listed","Not Listed",null,null,"Not Listed","Not Listed","Not Listed",null,null,null,null,null,null,null,null,"Not Listed","Not Listed","Not Listed","Not Listed","Not Listed","Not Listed","Not Listed","Not Listed","Not Listed","Not Listed","Not Listed"]
[]
[]
[null,null,{"$f":"C62&C63&C64&C65&C66&C67&C68&C69&C70&C71&C72&C73","v":""},null,null,{"$f":"F62&F63&F64&F65&F66&F67&F68&F69&F70&F71&F72&F73","v":""},null,null,{"$f":"I62&I63&I64&I65&I66&I67&I68&I69&I70&I71&I72&I73","v":""}]
[null,null,{"$f":"IF(G27>0,(IF(G26>0,H26&\" \n\",\"\")),((IF(G26>0,H26,\"\"))))","v":""},{"$f":"I26&J26","v":""},null,{"$f":"IF(J27>0,(IF(J26>0,K26&\"\n\",\"\")),((IF(J26>0,K26,\"\"))))","v":""},{"$f":"L26&M26","v":""},null,{"$f":"IF(O27>0,(IF(M26>0,N26&\"\n\",\"\")),((IF(M26>0,N26,\"\"))))","v":""}]
[null,null,"","",null,"",{"$f":"L27&M27","v":""},null,{"$f":"IF(O28>0,(IF(O27>0,Q27&\"\n\",\"\")),((IF(O27>0,Q27,\"\"))))","v":""}]
[null,null,"","",null,"","",null,""]
[null,null,"","",null,"","",null,""]
[null,null,"","",null,"","",null,""]
[null,null,"","",null,"","",null,""]
[null,null,"","",null,"","",null,""]
[null,null,"","",null,"","",null,""]
[null,null,"","",null,"","",null,""]
[null,null,"","",null,"","",null,""]
[null,null,"","",null,"","",null,""]
[null,null,"","",null,{"$f":"IF(I38>0,(IF(J37>0,K37&\"\n\",\"\")),((IF(J37>0,K37,\"\"))))","v":""},"",null,{"$f":"IF(L38>0,(IF(O37>0,Q37&\"\n\",\"\")),((IF(O37>0,Q37,\"\"))))","v":""}]
[null,null,null,null,null,null,""]
[null,null,null,null,null,null,""]
[null,null,null,null,null,null,""]

{"sheet":"Tableau Page","index":1,"n_rows":5,"n_cols":20,"rows_kept":5,"cut":false,"hidden":false,"merged":[]}
["CB year","Degree Plan","Department","Course Number","Course Name","Semester","Year","Hours","PreRecs","CoRecs","PreRec2","Degree Requirment","Requirement 2","Requirement 3","Course Type","Course Description","Outome","Introduce/Reinforce/Enphasize","Outcome Description","All Outcomes Filter"]
[2018,"CIS","TEST","TEST","TEST","TEST","TEST","TEST","MATH1310","0","None","A","B","C","D",3,"1, b, 4        ","Not Applicable","Hello\n goodbye\n d        ",true]
[2018,"CIS","TEST","TEST","TEST","TEST","TEST","TEST",null,null,null,null,null,null,null,null,1,null,"Hello",false]
[2018,"CIS","TEST","TEST","TEST","TEST","TEST","TEST",null,null,null,null,null,null,null,null,"b",null,"goodbye",false]
[2018,"CIS","TEST","TEST","TEST","TEST","TEST","TEST",null,null,null,null,null,null,null,null,4,null,"d",false]

{"sheet":"Course Database","index":2,"n_rows":300,"n_cols":5,"rows_kept":300,"cut":false,"hidden":false,"merged":[]}
["Helper","Department","Course Number ","Name","Data for final Table"]
[{"$f":"B2&C2","v":"ABCD1234"},"ABCD",1234,"Test Class",{"$f":"B2&\" \"&C2&\" \"&D2","v":"ABCD 1234 Test Class"}]
[{"$f":"B3&C3","v":"MATH1431"},"MATH",1431,"Calculus I",{"$f":"B3&\" \"&C3&\" \"&D3","v":"MATH 1431 Calculus I"}]
["MATH1330","MATH",1330,"Precalculus","MATH 1330 Precalculus"]
["MATH2433","MATH",2433,"Calculus III","MATH 2433 Calculus III"]
["MATH1432","MATH",1432,"Calculus II","MATH 1432 Calculus II"]
[{"$f":"#REF!&#REF!","v":{"$error":"#REF!"}},"MATH",1310,"College Algebra",{"$f":"B7&\" \"&C7&\" \"&D7","v":"MATH 1310 College Algebra"}]
[{"$f":"B7&C7","v":"MATH1310"}]
["",null,null,null,"  "]
[{"$f":"B10&C10","v":""},null,null,null,"  "]
[{"$f":"B11&C11","v":""},null,null,null,"  "]
["",null,null,null,"  "]
["",null,null,null,"  "]
["",null,null,null,"  "]
["",null,null,null,"  "]
["",null,null,null,"  "]
["",null,null,null,"  "]
["",null,null,null,"  "]
["",null,null,null,"  "]
["",null,null,null,"  "]
["",null,null,null,"  "]
["",null,null,null,"  "]
["",null,null,null,"  "]
["",null,null,null,"  "]
["",null,null,null,"  "]
["",null,null,null,"  "]
["",null,null,null,"  "]
["",null,null,null,"  "]
["",null,null,null,"  "]
["",null,null,null,"  "]
["",null,null,null,"  "]
["",null,null,null,"  "]
["",null,null,null,"  "]
["",null,null,null,"  "]
["",null,null,null,"  "]
["",null,null,null,"  "]
["",null,null,null,"  "]
["",null,null,null,"  "]
["",null,null,null,"  "]
["",null,null,null,"  "]
["",null,null,null,"  "]
["",null,null,null,"  "]
["",null,null,null,"  "]
["",null,null,null,"  "]
["",null,null,null,"  "]
["",null,null,null,"  "]
["",null,null,null,"  "]
["",null,null,null,"  "]
["",null,null,null,"  "]
["",null,null,null,"  "]
["",null,null,null,"  "]
["",null,null,null,"  "]
["",null,null,null,"  "]
["",null,null,null,"  "]
["",null,null,null,"  "]
["",null,null,null,"  "]
["",null,null,null,"  "]
["",null,null,null,"  "]
["",null,null,null,"  "]
["",null,null,null,"  "]
["",null,null,null,"  "]
["",null,null,null,"  "]
["",null,null,null,"  "]
["",null,null,null,"  "]
["",null,null,null,"  "]
["",null,null,null,"  "]
["",null,null,null,{"$f":"B67&\" \"&C67&\" \"&D67","v":"  "}]
["",null,null,null,"  "]
["",null,null,null,"  "]
["",null,null,null,"  "]
["",null,null,null,"  "]
["",null,null,null,"  "]
["",null,null,null,"  "]
["",null,null,null,"  "]
[{"$f":"B75&C75","v":""},null,null,null,"  "]
["",null,null,null,"  "]
["",null,null,null,"  "]
["",null,null,null,"  "]
["",null,null,null,"  "]
["",null,null,null,"  "]
["",null,null,null,"  "]
["",null,null,null,"  "]
["",null,null,null,"  "]
["",null,null,null,"  "]
["",null,null,null,"  "]
["",null,null,null,"  "]
["",null,null,null,"  "]
["",null,null,null,"  "]
["",null,null,null,"  "]
["",null,null,null,"  "]
["",null,null,null,"  "]
["",null,null,null,"  "]
["",null,null,null,"  "]
["",null,null,null,"  "]
["",null,null,null,"  "]
["",null,null,null,"  "]
["",null,null,null,"  "]
["",null,null,null,"  "]
["",null,null,null,"  "]
["",null,null,null,"  "]
["",null,null,null,"  "]
["",null,null,null,"  "]
["",null,null,null,"  "]
["",null,null,null,"  "]
["",null,null,null,"  "]
["",null,null,null,"  "]
["",null,null,null,"  "]
["",null,null,null,"  "]
["",null,null,null,"  "]
["",null,null,null,"  "]
["",null,null,null,"  "]
["",null,null,null,"  "]
["",null,null,null,"  "]
["",null,null,null,"  "]
["",null,null,null,"  "]
["",null,null,null,"  "]
["",null,null,null,"  "]
["",null,null,null,"  "]
["",null,null,null,"  "]
["",null,null,null,"  "]
["",null,null,null,"  "]
["",null,null,null,"  "]
["",null,null,null,"  "]
["",null,null,null,"  "]
["",null,null,null,"  "]
["",null,null,null,"  "]
["",null,null,null,"  "]
["",null,null,null,"  "]
["",null,null,null,"  "]
["",null,null,null,"  "]
["",null,null,null,{"$f":"B131&\" \"&C131&\" \"&D131","v":"  "}]
["",null,null,null,"  "]
["",null,null,null,"  "]
["",null,null,null,"  "]
["",null,null,null,"  "]
["",null,null,null,"  "]
["",null,null,null,"  "]
["",null,null,null,"  "]
[{"$f":"B139&C139","v":""},null,null,null,"  "]
["",null,null,null,"  "]
["",null,null,null,"  "]
["",null,null,null,"  "]
["",null,null,null,"  "]
["",null,null,null,"  "]
["",null,null,null,"  "]
["",null,null,null,"  "]
["",null,null,null,"  "]
["",null,null,null,"  "]
["",null,null,null,"  "]
["",null,null,null,"  "]
["",null,null,null,"  "]
["",null,null,null,"  "]
["",null,null,null,"  "]
["",null,null,null,"  "]
["",null,null,null,"  "]
["",null,null,null,"  "]
["",null,null,null,"  "]
["",null,null,null,"  "]
["",null,null,null,"  "]
["",null,null,null,"  "]
["",null,null,null,"  "]
["",null,null,null,"  "]
["",null,null,null,"  "]
["",null,null,null,"  "]
["",null,null,null,"  "]
["",null,null,null,"  "]
["",null,null,null,"  "]
["",null,null,null,"  "]
["",null,null,null,"  "]
["",null,null,null,"  "]
["",null,null,null,"  "]
["",null,null,null,"  "]
["",null,null,null,"  "]
["",null,null,null,"  "]
["",null,null,null,"  "]
["",null,null,null,"  "]
["",null,null,null,"  "]
["",null,null,null,"  "]
["",null,null,null,"  "]
["",null,null,null,"  "]
["",null,null,null,"  "]
["",null,null,null,"  "]
["",null,null,null,"  "]
["",null,null,null,"  "]
["",null,null,null,"  "]
["",null,null,null,"  "]
["",null,null,null,"  "]
["",null,null,null,"  "]
["",null,null,null,"  "]
["",null,null,null,"  "]
["",null,null,null,"  "]
["",null,null,null,"  "]
["",null,null,null,"  "]
["",null,null,null,"  "]
["",null,null,null,{"$f":"B195&\" \"&C195&\" \"&D195","v":"  "}]
["",null,null,null,"  "]
["",null,null,null,"  "]
["",null,null,null,"  "]
["",null,null,null,"  "]
["",null,null,null,"  "]
["",null,null,null,"  "]
["",null,null,null,"  "]
[{"$f":"B203&C203","v":""},null,null,null,"  "]
["",null,null,null,"  "]
["",null,null,null,"  "]
["",null,null,null,"  "]
["",null,null,null,"  "]
["",null,null,null,"  "]
["",null,null,null,"  "]
["",null,null,null,"  "]
["",null,null,null,"  "]
["",null,null,null,"  "]
["",null,null,null,"  "]
["",null,null,null,"  "]
["",null,null,null,"  "]
["",null,null,null,"  "]
["",null,null,null,"  "]
["",null,null,null,"  "]
["",null,null,null,"  "]
["",null,null,null,"  "]
["",null,null,null,"  "]
["",null,null,null,"  "]
["",null,null,null,"  "]
["",null,null,null,"  "]
["",null,null,null,"  "]
["",null,null,null,"  "]
["",null,null,null,"  "]
["",null,null,null,"  "]
["",null,null,null,"  "]
["",null,null,null,"  "]
["",null,null,null,"  "]
["",null,null,null,"  "]
["",null,null,null,"  "]
["",null,null,null,"  "]
["",null,null,null,"  "]
["",null,null,null,"  "]
["",null,null,null,"  "]
["",null,null,null,"  "]
["",null,null,null,"  "]
["",null,null,null,"  "]
["",null,null,null,"  "]
["",null,null,null,"  "]
["",null,null,null,"  "]
["",null,null,null,"  "]
["",null,null,null,"  "]
["",null,null,null,"  "]
["",null,null,null,"  "]
["",null,null,null,"  "]
["",null,null,null,"  "]
["",null,null,null,"  "]
["",null,null,null,"  "]
["",null,null,null,"  "]
["",null,null,null,"  "]
["",null,null,null,"  "]
["",null,null,null,"  "]
["",null,null,null,"  "]
["",null,null,null,"  "]
["",null,null,null,"  "]
["",null,null,null,{"$f":"B259&\" \"&C259&\" \"&D259","v":"  "}]
["",null,null,null,"  "]
["",null,null,null,"  "]
["",null,null,null,"  "]
["",null,null,null,"  "]
["",null,null,null,"  "]
["",null,null,null,"  "]
["",null,null,null,"  "]
[{"$f":"B267&C267","v":""},null,null,null,"  "]
["",null,null,null,"  "]
["",null,null,null,"  "]
["",null,null,null,"  "]
["",null,null,null,"  "]
["",null,null,null,"  "]
["",null,null,null,"  "]
["",null,null,null,"  "]
["",null,null,null,"  "]
["",null,null,null,"  "]
["",null,null,null,"  "]
["",null,null,null,"  "]
["",null,null,null,"  "]
["",null,null,null,"  "]
["",null,null,null,"  "]
["",null,null,null,"  "]
["",null,null,null,"  "]
["",null,null,null,"  "]
["",null,null,null,"  "]
["",null,null,null,"  "]
["",null,null,null,"  "]
["",null,null,null,"  "]
["",null,null,null,"  "]
["",null,null,null,"  "]
["",null,null,null,"  "]
["",null,null,null,"  "]
["",null,null,null,"  "]
["",null,null,null,"  "]
["",null,null,null,"  "]
["",null,null,null,"  "]
["",null,null,null,"  "]
["",null,null,null,"  "]
["",null,null,null,"  "]
["",null,null,null,{"$f":"B300&\" \"&C300&\" \"&D300","v":"  "}]